fUST/lending_fUST_20250717
["ID","MTS","AMOUNT","RATE_DAILY","PERIOD"]
[372584295,1752694242191,-460.0,0.00020821,2]
[372584297,1752694242200,-460.0,0.00020821,2]
[372584299,1752694242209,-460.0,0.00020821,2]
[372584301,1752694242219,-460.0,0.00020821,2]
[372584303,1752694242228,-611.6,0.00020821,2]
[372584305,1752694242238,-470.7,0.00020821,2]
[372584307,1752694242247,-324.03494865,0.00020821,2]
[372584309,1752694242257,-460.0,0.00020821,2]
[372584311,1752694242266,-1636.37,0.00020821,2]
[372584313,1752694242276,-510.59,0.00020821,2]
[372584315,1752694242285,-2653.65750983,0.00020831,4]
[372584318,1752694242296,-186.4497016,0.0002089,2]
[372584320,1752694242306,-460.0,0.00020895,2]
[372584321,1752694242316,-816.87,0.00020895,2]
[372584323,1752694242325,-1680.19,0.00020895,2]
[372584326,1752694242336,-460.0,0.00020895,2]
[372584328,1752694242345,-460.0,0.00020895,2]
[372584330,1752694242354,-460.0,0.00020895,2]
[372584332,1752694242363,-2803.52,0.00020895,2]
[372584333,1752694242372,-642.09,0.00020895,2]
[372584336,1752694242381,-460.0,0.00020895,2]
[372584337,1752694242391,-1748.36,0.00020895,2]
[372584339,1752694242400,-972.68,0.00020895,2]
[372584341,1752694242409,-460.0,0.00020895,2]
[372584343,1752694242419,-460.0,0.00020895,2]
[372584345,1752694242430,-326.06,0.00020895,2]
[372584347,1752694242439,-460.0,0.00020895,2]
[372584349,1752694242449,-1438.37,0.00020895,2]
[372584351,1752694242459,-460.0,0.00020895,2]
[372584353,1752694242469,-983.03,0.00020895,2]
[372584355,1752694242479,-475.44,0.00020895,2]
[372584358,1752694242489,-1765.45,0.00020995,2]
[372584361,1752694242498,-287.18807212,0.00020995,2]
[372584364,1752694242507,-784.45,0.00020995,2]
[372584367,1752694242517,-460.0,0.00020995,2]
[372584370,1752694242526,-538.06,0.00020995,2]
[372584373,1752694242535,-460.0,0.00020995,2]
[372584376,1752694242545,-460.0,0.00020995,2]
[372584379,1752694242554,-1168.88,0.00020995,2]
[372584382,1752694242565,-603.47,0.00020995,2]
[372584385,1752694242574,-989.533,0.00021033,2]
[372584388,1752694242583,-360.0,0.00021051,2]
[372584391,1752694242594,-2653.65750983,0.00021072,4]
[372584394,1752694242604,-460.0,0.00021095,2]
[372584397,1752694242614,-360.81,0.00021095,2]
[372584400,1752694242624,-414.71,0.00021095,2]
[372584404,1752694242633,-460.0,0.00021095,2]
[372584407,1752694242642,-464.67,0.00021095,2]
[372584411,1752694242652,-363.4,0.00021095,2]
[372584415,1752694242661,-611.6,0.00021095,2]
[372584418,1752694242671,-470.7,0.00021095,2]
[372584420,1752694242682,-460.0,0.00021095,2]
[372584422,1752694242691,-1636.37,0.00021095,2]
[372584424,1752694242701,-510.59,0.00021095,2]
[372584426,1752694242710,-593.3,0.00021169,2]
[372584428,1752694242720,-816.87,0.00021169,2]
[372584430,1752694242730,-1680.19,0.00021169,2]
[372584432,1752694242741,-460.0,0.00021169,2]
[372584434,1752694242752,-460.0,0.00021169,2]
[372584436,1752694242762,-460.0,0.00021169,2]
[372584440,1752694242772,-2803.52,0.00021169,2]
[372584442,1752694242782,-642.09,0.00021169,2]
[372584445,1752694242792,-460.30368732,0.00021169,2]
[372584448,1752694242801,-1748.36,0.00021169,2]
[372584450,1752694242811,-972.68,0.00021169,2]
[372584452,1752694242823,-489.64,0.00021169,2]
[372584454,1752694242833,-460.0,0.00021169,2]
[372584456,1752694242842,-460.0,0.00021169,2]
[372584458,1752694242851,-1438.37,0.00021169,2]
[372584460,1752694242860,-460.0,0.00021169,2]
[372584462,1752694242870,-983.03,0.00021169,2]
[372584464,1752694242879,-475.44,0.00021169,2]
[372584465,1752694242888,-500.0,0.00021172,2]
[372584467,1752694242897,-165.20533425,0.00021244,2]
[372584469,1752694242907,-1765.45,0.00021269,2]
[372584471,1752694242916,-784.45,0.00021269,2]
[372584473,1752694242926,-460.0,0.00021269,2]
[372584475,1752694242935,-538.06,0.00021269,2]
[372584477,1752694242945,-460.0,0.00021269,2]
[372584479,1752694242953,-460.0,0.00021269,2]
[372584481,1752694242963,-1168.88,0.00021269,2]
[372584483,1752694242972,-2653.65750983,0.00021314,5]
[372584485,1752694242981,-460.0,0.00021369,2]
[372584487,1752694242991,-292.8,0.00021369,2]
[372584489,1752694243000,-611.6,0.00021369,2]
[372584491,1752694243010,-470.7,0.00021369,2]
[372584493,1752694243020,-460.0,0.00021369,2]
[372584495,1752694243029,-1636.37,0.00021369,2]
[372584497,1752694243038,-510.59,0.00021369,2]
[372584499,1752694243047,-816.87,0.00021443,2]
[372584501,1752694243057,-1680.19,0.00021443,2]
[372584504,1752694243066,-460.0,0.00021443,2]
[372584505,1752694243076,-460.0,0.00021443,2]
[372584507,1752694243085,-460.0,0.00021443,2]
[372584509,1752694243096,-2803.52,0.00021443,2]
[372584511,1752694243107,-642.09,0.00021443,2]
[372584513,1752694243116,-1748.36,0.00021443,2]
[372584516,1752694243127,-972.68,0.00021443,2]
[372584517,1752694243136,-460.0,0.00021443,2]
[372584519,1752694243145,-460.0,0.00021443,2]
[372584521,1752694243155,-1438.37,0.00021443,2]
[372584523,1752694243165,-388.8,0.00021443,2]
[372584526,1752694243175,-983.03,0.00021443,2]
[372584527,1752694243193,-475.44,0.00021443,2]
[372584529,1752694243203,-12520.75269904,0.000215,2]
[372584531,1752694243214,-207.4,0.00021513,2]
[372584533,1752694243225,-25000.0,0.00021513,2]
[372584535,1752694243236,-1128.6027529,0.00021513,2]
[372584537,1752694243248,-1765.45,0.00021543,2]
[372584539,1752694243258,-784.45,0.00021543,2]
[372584541,1752694243270,-460.0,0.00021543,2]
[372584543,1752694243281,-538.06,0.00021543,2]
[372584545,1752694243292,-460.0,0.00021543,2]
[372584547,1752694243303,-246.34,0.00021543,2]
[372584549,1752694243314,-1168.88,0.00021543,2]
[372584551,1752694243324,-2653.65750983,0.00021555,5]
[372584553,1752694243334,-460.0,0.00021599,2]
[372584555,1752694243345,-460.0,0.00021643,2]
[372584557,1752694243355,-611.6,0.00021643,2]
[372584559,1752694243365,-470.7,0.00021643,2]
[372584561,1752694243375,-460.0,0.00021643,2]
[372584563,1752694243384,-1636.37,0.00021643,2]
[372584565,1752694243394,-510.59,0.00021643,2]
[372584567,1752694243404,-816.87,0.00021717,2]
[372584569,1752694243414,-1680.19,0.00021717,2]
[372584571,1752694243424,-460.0,0.00021717,2]
[372584573,1752694243442,-460.0,0.00021717,2]
[372584575,1752694243451,-460.0,0.00021717,2]
[372584577,1752694243461,-2803.52,0.00021717,2]
[372584580,1752694243472,-642.09,0.00021717,2]
[372584582,1752694243481,-1748.36,0.00021717,2]
[372584584,1752694243491,-972.68,0.00021717,2]
[372584586,1752694243501,-460.0,0.00021717,2]
[372584588,1752694243511,-460.0,0.00021717,2]
[372584590,1752694243520,-1438.37,0.00021717,2]
[372584592,1752694243530,-983.03,0.00021717,2]
[372584595,1752694243539,-475.44,0.00021717,2]
[372584597,1752694243549,-217.7,0.00021773,4]
[372584599,1752694243558,-160.0,0.00021792,3]
[372584601,1752694243567,-2653.65750983,0.00021797,6]
[372584603,1752694243576,-1765.45,0.00021817,2]
[372584605,1752694243585,-784.45,0.00021817,2]
[372584607,1752694243595,-460.0,0.00021817,2]
[372584609,1752694243604,-538.06,0.00021817,2]
[372584611,1752694243614,-460.0,0.00021817,2]
[372584613,1752694243623,-1168.88,0.00021817,2]
[372584615,1752694243632,-186.44970157,0.00021868,2]
[372584617,1752694243641,-114424.95216023,0.00021916,2]
[372584618,1752694243650,-460.0,0.00021917,2]
[372584620,1752694243660,-611.6,0.00021917,2]
[372584622,1752694243670,-470.7,0.00021917,2]
[372584625,1752694243685,-460.0,0.00021917,2]
[372584627,1752694243694,-1636.37,0.00021917,2]
[372584629,1752694243704,-510.59,0.00021917,2]
[372584630,1752694243713,-500.0,0.00021917,2]
[372584632,1752694243723,-500.0,0.00021917,2]
[372584634,1752694243734,-500.0,0.00021917,2]
[372584636,1752694243745,-500.0,0.00021917,2]
[372584638,1752694243754,-500.0,0.00021917,2]
[372584640,1752694243763,-500.0,0.00021917,2]
[372584642,1752694243774,-536.59,0.00021917,2]
[372584644,1752694243783,-200.0,0.00021918,2]
[372584646,1752694243793,-158.03292145,0.0002192,4]
[372584648,1752694243803,-159.13686405,0.0002192,4]
[372584650,1752694243812,-3020.1310627,0.00021922,2]
[372584652,1752694243823,-500.0,0.00021973,2]
[372584654,1752694243833,-500.0,0.00021973,2]
[372584656,1752694243842,-500.0,0.00021973,2]
[372584658,1752694243851,-500.0,0.00021973,2]
[372584660,1752694243860,-500.0,0.00021973,2]
[372584662,1752694243870,-500.0,0.00021973,2]
[372584664,1752694243879,-816.87,0.00021991,2]
[372584666,1752694243889,-1680.19,0.00021991,2]
[372584668,1752694243898,-460.0,0.00021991,2]
[372584670,1752694243908,-460.0,0.00021991,2]
[372584672,1752694243918,-460.0,0.00021991,2]
[372584674,1752694243930,-2803.52,0.00021991,2]
[372584676,1752694243940,-642.09,0.00021991,2]
[372584678,1752694243950,-1748.36,0.00021991,2]
[372584680,1752694243959,-972.68,0.00021991,2]
[372584682,1752694243968,-460.0,0.00021991,2]
[372584684,1752694243978,-424.36529403,0.00021991,2]
[372584686,1752694243988,-1438.37,0.00021991,2]
[372584701,1752694244126,-983.03,0.00021991,2]
[372584703,1752694244136,-475.44,0.00021991,2]
[372584705,1752694244147,-2561.55421399,0.00022,2]
[372584708,1752694244158,-12605.49131908,0.00022,7]
[372584709,1752694244169,-2894.46,0.00022,7]
[372584711,1752694244182,-26691.31,0.00022,7]
[372584713,1752694244192,-5262.95,0.00022,7]
[372584715,1752694244201,-75218.82571281,0.00022,2]
[372584717,1752694244211,-352.61950143,0.00022,2]
[372584719,1752694244220,-54948.53497857,0.00022,2]
[372584721,1752694244230,-214.40824756,0.00022,7]
[372584723,1752694244239,-164.0,0.00022,2]
[372584726,1752694244251,-2653.65750983,0.00022038,6]
[372584727,1752694244263,-500.0,0.00022052,2]
[372584729,1752694244273,-1765.45,0.00022091,2]
[372584732,1752694244285,-784.45,0.00022091,2]
[372584733,1752694244294,-460.0,0.00022091,2]
[372584736,1752694244304,-538.06,0.00022091,2]
[372584738,1752694244314,-460.0,0.00022091,2]
[372584740,1752694244324,-1168.88,0.00022091,2]
[372584742,1752694244334,-217.7,0.00022147,5]
[372584744,1752694244343,-560.0,0.00022147,2]
[372584746,1752694244353,-460.0,0.00022191,2]
[372584748,1752694244363,-611.6,0.00022191,2]
[372584750,1752694244373,-470.7,0.00022191,2]
[372584752,1752694244382,-460.0,0.00022191,2]
[372584753,1752694244392,-1636.37,0.00022191,2]
[372584754,1752694244401,-510.59,0.00022191,2]
[372584755,1752694244410,-164.0,0.00022192,7]
[372584756,1752694244419,-816.87,0.00022265,2]
[372584757,1752694244429,-1680.19,0.00022265,2]
[372584758,1752694244439,-460.0,0.00022265,2]
[372584759,1752694244448,-460.0,0.00022265,2]
[372584760,1752694244457,-162.66,0.00022265,2]
[372584761,1752694244467,-2803.52,0.00022265,2]
[372584762,1752694244477,-642.09,0.00022265,2]
[372584764,1752694244487,-1748.36,0.00022265,2]
[372584765,1752694244496,-972.68,0.00022265,2]
[372584768,1752694244506,-460.0,0.00022265,2]
[372584770,1752694244515,-1438.37,0.00022265,2]
[372584772,1752694244525,-983.03,0.00022265,2]
[372584774,1752694244535,-475.44,0.00022265,2]
[372584776,1752694244544,-3020.1310628,0.0002227,2]
[372584778,1752694244554,-2653.65750983,0.00022279,6]
[372584780,1752694244563,-656.64663739,0.000223,2]
[372584782,1752694244572,-250.0,0.00022329,2]
[372584784,1752694244581,-1765.45,0.00022365,2]
[372584786,1752694244591,-784.45,0.00022365,2]
[372584788,1752694244600,-460.0,0.00022365,2]
[372584790,1752694244609,-538.06,0.00022365,2]
[372584792,1752694244618,-460.0,0.00022365,2]
[372584794,1752694244628,-1168.88,0.00022365,2]
[372584796,1752694244637,-500.0,0.00022375,2]
[372584798,1752694244647,-471.88357901,0.00022375,2]
[372584800,1752694244656,-158.03,0.0002239,4]
[372584802,1752694244665,-159.13,0.0002239,4]
[372584804,1752694244674,-52950.13438887,0.000224,2]
[372584806,1752694244686,-460.0,0.00022465,2]
[372584808,1752694244695,-611.6,0.00022465,2]
[372584810,1752694244705,-470.7,0.00022465,2]
[372584812,1752694244714,-460.0,0.00022465,2]
[372584814,1752694244723,-1636.37,0.00022465,2]
[372584816,1752694244736,-510.59,0.00022465,2]
[372584818,1752694244746,-500.0,0.00022473,2]
[372584820,1752694244755,-500.0,0.00022473,2]
[372584822,1752694244764,-500.0,0.00022473,2]
[372584824,1752694244775,-500.0,0.00022473,2]
[372584826,1752694244785,-506.54450191,0.00022473,2]
[372584828,1752694244794,-500.0,0.00022473,2]
[372584830,1752694244803,-500.0,0.00022473,2]
[372584832,1752694244814,-500.0,0.00022473,2]
[372584834,1752694244824,-500.0,0.00022473,2]
[372584836,1752694244834,-500.81020057,0.00022473,2]
[372584838,1752694244843,-500.80122548,0.00022473,2]
[372584840,1752694244853,-500.0,0.00022473,2]
[372584842,1752694244862,-152.635506,0.0002249,7]
[372584844,1752694244872,-913999.96462716,0.0002249,7]
[372584846,1752694244882,-1000.0,0.00022521,2]
[372584848,1752694244892,-1000.0,0.00022521,2]
[372584850,1752694244902,-1000.0,0.00022521,2]
[372584852,1752694244911,-1000.0,0.00022521,2]
[372584854,1752694244921,-2653.65750983,0.00022521,7]
[372584856,1752694244936,-217.7,0.00022521,5]
[372584858,1752694244946,-816.87,0.00022539,2]
[372584860,1752694244956,-1680.19,0.00022539,2]
[372584862,1752694244966,-460.0,0.00022539,2]
[372584864,1752694244975,-460.0,0.00022539,2]
[372584866,1752694244985,-2803.52,0.00022539,2]
[372584868,1752694244994,-642.09,0.00022539,2]
[372584871,1752694245005,-1748.36,0.00022539,2]
[372584873,1752694245014,-972.68,0.00022539,2]
[372584875,1752694245023,-460.0,0.00022539,2]
[372584876,1752694245033,-1438.37,0.00022539,2]
[372584878,1752694245042,-587.0,0.00022539,2]
[372584880,1752694245051,-983.03,0.00022539,2]
[372584882,1752694245060,-475.44,0.00022539,2]
[372584884,1752694245069,-1765.45,0.00022639,2]
[372584886,1752694245078,-784.45,0.00022639,2]
[372584888,1752694245088,-460.0,0.00022639,2]
[372584890,1752694245097,-538.06,0.00022639,2]
[372584893,1752694245107,-460.0,0.00022639,2]
[372584895,1752694245116,-1168.88,0.00022639,2]
[372584897,1752694245126,-660.0,0.00022695,2]
[372584899,1752694245136,-5105.58489918,0.000227,2]
[372584901,1752694245146,-1017.54504025,0.000227,2]
[372584903,1752694245155,-500.0,0.000227,2]
[372584905,1752694245165,-500.0,0.00022721,2]
[372584907,1752694245174,-500.0,0.00022721,2]
[372584909,1752694245185,-500.0,0.00022721,2]
[372584911,1752694245195,-500.0,0.00022736,2]
[372584913,1752694245204,-500.0,0.00022736,2]
[372584915,1752694245215,-500.8009727,0.00022736,2]
[372584917,1752694245224,-500.0,0.00022736,2]
[372584919,1752694245234,-460.0,0.00022739,2]
[372584921,1752694245244,-611.6,0.00022739,2]
[372584923,1752694245253,-470.7,0.00022739,2]
[372584925,1752694245263,-350.515308,0.00022739,2]
[372584927,1752694245273,-1636.37,0.00022739,2]
[372584929,1752694245285,-510.59,0.00022739,2]
[372584931,1752694245295,-2653.65750983,0.00022762,7]
[372584933,1752694245305,-160.0,0.00022791,4]
[372584935,1752694245314,-816.87,0.00022813,2]
[372584937,1752694245324,-1680.19,0.00022813,2]
[372584939,1752694245333,-460.0,0.00022813,2]
[372584941,1752694245343,-460.0,0.00022813,2]
[372584943,1752694245353,-2803.52,0.00022813,2]
[372584945,1752694245363,-642.09,0.00022813,2]
[372584948,1752694245372,-1748.36,0.00022813,2]
[372584950,1752694245382,-972.68,0.00022813,2]
[372584952,1752694245392,-286.75,0.00022813,2]
[372584954,1752694245402,-1438.37,0.00022813,2]
[372584956,1752694245412,-983.03,0.00022813,2]
[372584958,1752694245421,-475.44,0.00022813,2]
[372584960,1752694245433,-186.44970157,0.00022845,2]
[372584962,1752694245442,-215.0738,0.00022882,2]
[372584964,1752694245451,-217.7,0.00022895,5]
[372584966,1752694245461,-151.0,0.000229,7]
[372584968,1752694245471,-1765.45,0.00022913,2]
[372584970,1752694245480,-784.45,0.00022913,2]
[372584971,1752694245490,-310.01,0.00022913,2]
[372584973,1752694245500,-538.06,0.00022913,2]
[372584975,1752694245510,-460.0,0.00022913,2]
[372584978,1752694245520,-1168.88,0.00022913,2]
[372584982,1752694245529,-151.0,0.00022969,7]
[372584986,1752694245538,-525.44090785,0.00022973,2]
[372584988,1752694245547,-500.0,0.00022973,2]
[372584990,1752694245557,-153.0,0.00022987,3]
[372584992,1752694245566,-172.0,0.00022987,3]
[372584994,1752694245575,-153.0,0.00022987,3]
[372584996,1752694245584,-153.0,0.00022987,3]
[372584998,1752694245593,-172.0,0.00022987,3]
[372585000,1752694245603,-153.0,0.00022987,3]
[372585002,1752694245613,-153.0,0.00022987,3]
[372585004,1752694245623,-172.0,0.00022987,3]
[372585006,1752694245632,-153.0,0.00022987,3]
[372585008,1752694245641,-172.0,0.00022987,3]
[372585010,1752694245651,-153.0,0.00022987,3]
[372585012,1752694245660,-153.0,0.00022987,3]
[372585014,1752694245671,-153.0,0.00022987,3]
[372585016,1752694245683,-152.0,0.00022987,3]
[372585018,1752694245693,-158.61874939,0.00022987,3]
[372585020,1752694245703,-1751.0,0.00022987,3]
[372585022,1752694245713,-152.0,0.00022987,3]
[372585024,1752694245723,-1751.0,0.00022987,3]
[372585026,1752694245734,-152.0,0.00022987,3]
[372585028,1752694245746,-1751.0,0.00022987,3]
[372585030,1752694245756,-152.0,0.00022987,3]
[372585032,1752694245766,-1751.0,0.00022987,3]
[372585034,1752694245777,-1751.0,0.00022987,3]
[372585036,1752694245786,-1751.0,0.00022987,3]
[372585038,1752694245796,-1751.0,0.00022987,3]
[372585040,1752694245806,-1751.0,0.00022987,3]
[372585042,1752694245815,-1751.0,0.00022987,3]
[372585044,1752694245825,-152.0,0.00022987,3]
[372585046,1752694245835,-1751.0,0.00022987,3]
[372585048,1752694245845,-152.0,0.00022987,3]
[372585050,1752694245855,-152.0,0.00022987,3]
[372585052,1752694245865,-152.0,0.00022987,3]
[372585054,1752694245874,-152.0,0.00022987,3]
[372585057,1752694245885,-152.0,0.00022987,3]
[372585058,1752694245895,-152.0,0.00022987,3]
[372585061,1752694245905,-152.0,0.00022987,3]
[372585063,1752694245914,-152.0,0.00022987,3]
[372585065,1752694245923,-152.0,0.00022987,3]
[372585066,1752694245936,-152.0,0.00022987,3]
[372585069,1752694245946,-152.0,0.00022987,3]
[372585071,1752694245956,-324.0,0.00022987,3]
[372585073,1752694245965,-324.0,0.00022987,3]
[372585075,1752694245974,-324.0,0.00022987,3]
[372585077,1752694245983,-324.0,0.00022987,3]
[372585079,1752694245993,-324.0,0.00022987,3]
[372585081,1752694246002,-324.0,0.00022987,3]
[372585083,1752694246011,-324.0,0.00022987,3]
[372585085,1752694246020,-324.0,0.00022987,3]
[372585087,1752694246030,-324.0,0.00022987,3]
[372585089,1752694246040,-324.0,0.00022987,3]
[372585091,1752694246049,-324.0,0.00022987,3]
[372585093,1752694246059,-324.0,0.00022987,3]
[372585095,1752694246068,-324.0,0.00022987,3]
[372585097,1752694246078,-324.0,0.00022987,3]
[372585099,1752694246087,-324.0,0.00022987,3]
[372585101,1752694246097,-324.0,0.00022987,3]
[372585103,1752694246106,-324.0,0.00022987,3]
[372585105,1752694246116,-324.0,0.00022987,3]
[372585107,1752694246125,-324.0,0.00022987,3]
[372585109,1752694246135,-324.0,0.00022987,3]
[372585111,1752694246144,-324.0,0.00022987,3]
[372585113,1752694246153,-324.0,0.00022987,3]
[372585115,1752694246163,-324.0,0.00022987,3]
[372585117,1752694246173,-324.0,0.00022987,3]
[372585119,1752694246185,-324.0,0.00022987,3]
[372585121,1752694246195,-324.0,0.00022987,3]
[372585123,1752694246205,-324.0,0.00022987,3]
[372585125,1752694246214,-324.0,0.00022987,3]
[372585128,1752694246223,-324.0,0.00022987,3]
[372585130,1752694246232,-324.0,0.00022987,3]
[372585133,1752694246243,-324.0,0.00022987,3]
[372585135,1752694246252,-324.0,0.00022987,3]
[372585137,1752694246262,-412.33697318,0.00022987,3]
[372585139,1752694246271,-1792.441711,0.0002299,8]
[372585141,1752694246281,-160.0,0.00023,3]
[372585143,1752694246290,-160.0,0.00023,3]
[372585145,1752694246299,-223.15992661,0.00023,3]
[372585147,1752694246308,-2894.46,0.00023,7]
[372585149,1752694246318,-26691.31,0.00023,7]
[372585151,1752694246326,-500.14781684,0.00023,3]
[372585153,1752694246337,-525.58295679,0.00023,3]
[372585155,1752694246346,-215.5496034,0.00023,3]
[372585157,1752694246356,-2653.65750983,0.00023003,8]
[372585159,1752694246365,-151.0,0.00023013,7]
[372585161,1752694246375,-151.0,0.00023013,7]
[372585163,1752694246385,-460.0,0.00023013,2]
[372585165,1752694246394,-611.6,0.00023013,2]
[372585167,1752694246403,-470.7,0.00023013,2]
[372585169,1752694246412,-1636.37,0.00023013,2]
[372585171,1752694246422,-510.59,0.00023013,2]
[372585173,1752694246432,-164.0,0.00023014,7]
[372585175,1752694246442,-1000.0,0.00023021,2]
[372585177,1752694246452,-500.0,0.00023021,2]
[372585179,1752694246461,-1000.0,0.00023021,2]
[372585181,1752694246470,-500.0,0.00023021,2]
[372585183,1752694246479,-816.87,0.00023087,2]
[372585185,1752694246488,-1680.19,0.00023087,2]
[372585190,1752694246527,-460.0,0.00023087,2]
[372585192,1752694246537,-460.0,0.00023087,2]
[372585194,1752694246546,-2803.52,0.00023087,2]
[372585196,1752694246555,-642.09,0.00023087,2]
[372585198,1752694246564,-1748.36,0.00023087,2]
[372585200,1752694246574,-972.68,0.00023087,2]
[372585202,1752694246583,-1438.37,0.00023087,2]
[372585204,1752694246592,-983.03,0.00023087,2]
[372585206,1752694246602,-475.44,0.00023087,2]
[372585208,1752694246617,-500.0,0.00023105,2]
[372585210,1752694246626,-1751.0,0.00023112,3]
[372585212,1752694246635,-152.635506,0.00023122,2]
[372585214,1752694246644,-500.0,0.00023148,2]
[372585216,1752694246654,-1765.45,0.00023187,2]
[372585218,1752694246664,-784.45,0.00023187,2]
[372585220,1752694246674,-538.06,0.00023187,2]
[372585222,1752694246686,-355.01,0.00023187,2]
[372585224,1752694246696,-1168.88,0.00023187,2]
[372585226,1752694246706,-3717.545409,0.000232,2]
[372585228,1752694246717,-10000.0,0.000232,2]
[372585230,1752694246727,-5262.95,0.000232,7]
[372585233,1752694246744,-152.635506,0.00023212,6]
[372585235,1752694246753,-760.0,0.00023243,2]
[372585236,1752694246762,-2653.65750983,0.00023245,8]
[372585238,1752694246771,-217.7,0.00023269,5]
[372585241,1752694246782,-1000.0,0.00023269,2]
[372585242,1752694246791,-1000.0,0.00023269,2]
[372585244,1752694246800,-909.246555,0.00023274,7]
[372585247,1752694246809,-151.0,0.00023274,7]
[372585249,1752694246819,-201.031771,0.00023274,7]
[372585250,1752694246829,-151.0,0.00023287,7]
[372585252,1752694246838,-460.0,0.00023287,2]
[372585255,1752694246849,-611.6,0.00023287,2]
[372585257,1752694246858,-470.7,0.00023287,2]
[372585259,1752694246867,-1636.37,0.00023287,2]
[372585261,1752694246876,-510.59,0.00023287,2]
[372585263,1752694246887,-816.87,0.00023361,2]
[372585265,1752694246896,-1680.19,0.00023361,2]
[372585267,1752694246907,-460.0,0.00023361,2]
[372585269,1752694246916,-460.0,0.00023361,2]
[372585271,1752694246926,-2803.52,0.00023361,2]
[372585273,1752694246939,-642.09,0.00023361,2]
[372585275,1752694246949,-1748.36,0.00023361,2]
[372585277,1752694246959,-972.68,0.00023361,2]
[372585279,1752694246969,-1438.37,0.00023361,2]
[372585281,1752694246980,-983.03,0.00023361,2]
[372585283,1752694246990,-475.44,0.00023361,2]
[372585285,1752694247000,-152.635506,0.00023367,7]
[372585287,1752694247010,-1473.86,0.000234,2]
[372585289,1752694247020,-1765.45,0.00023461,2]
[372585291,1752694247029,-784.45,0.00023461,2]
[372585293,1752694247039,-538.06,0.00023461,2]
[372585295,1752694247050,-1168.88,0.00023461,2]
[372585297,1752694247059,-319.4629672,0.00023479,2]
[372585299,1752694247069,-159.7314836,0.00023479,2]
[372585301,1752694247078,-159.7314836,0.00023479,2]
[372585303,1752694247088,-318.5689089,0.00023479,2]
[372585305,1752694247099,-159.7314836,0.00023479,2]
[372585307,1752694247108,-159.7314836,0.00023479,2]
[372585309,1752694247117,-576.8651031,0.00023479,2]
[372585311,1752694247126,-159.7314836,0.00023479,2]
[372585313,1752694247135,-159.7314836,0.00023479,2]
[372585315,1752694247145,-756.2638359,0.00023479,2]
[372585317,1752694247155,-159.7314836,0.00023479,2]
[372585319,1752694247164,-576.8651031,0.00023479,2]
[372585321,1752694247173,-2653.65750983,0.00023486,9]
[372585323,1752694247184,-909.246555,0.000235,7]
[372585325,1752694247194,-34764.33,0.000235,2]
[372585327,1752694247204,-165.20533425,0.00023511,2]
[372585329,1752694247213,-150.0,0.00023513,2]
[372585331,1752694247223,-151.0,0.0002352,7]
[372585333,1752694247232,-151.0,0.00023561,7]
[372585335,1752694247241,-460.0,0.00023561,2]
[372585337,1752694247251,-611.6,0.00023561,2]